[Event "Titled Tuesday Blitz April 05 Late 2022"]
[White "Almagro Mazariegos, Sebastian"]
[Black "Ovetchkin, Roman"]
[WhiteFideId "2221640"]
[BlackFideId "4119991"]
[WhiteElo "2273"]
[BlackElo "2409"]
[Result "0-1"]
[Round "01"]
[TimeControl "180+1"]
[Date "2022.04.06"]
[WhiteClock "0:00:02"]
[BlackClock "0:00:28"]

1. e4 {[%clk 0:02:47]}  c6 {[%clk 0:02:56]} 2. c4 {[%clk 0:02:46]}  d5 {[%clk 0:02:56]} 3. cxd5 {[%clk 0:02:46]}  cxd5 {[%clk 0:02:57]} 4. exd5 {[%clk 0:02:47]}  Nf6 {[%clk 0:02:57]} 5. Nc3 {[%clk 0:02:47]}  g6 {[%clk 0:02:56]} 6. Bc4 {[%clk 0:02:47]}  Bg7 {[%clk 0:02:55]} 7. h3 {[%clk 0:02:47]}  O-O {[%clk 0:02:55]} 8. Qf3 {[%clk 0:02:47]}  Nbd7 {[%clk 0:02:55]} 9. d4 {[%clk 0:02:47]}  a6 {[%clk 0:02:48]} 10. a4 {[%clk 0:02:44]}  Nb6 {[%clk 0:02:45]} 11. Bb3 {[%clk 0:02:44]}  Bd7 {[%clk 0:02:39]} 12. Nge2 {[%clk 0:02:38]}  Nc8 {[%clk 0:02:27]} 13. O-O {[%clk 0:02:32]}  Nd6 {[%clk 0:02:24]} 14. Re1 {[%clk 0:02:18]}  Re8 {[%clk 0:02:19]} 15. Bf4 {[%clk 0:02:14]}  Qb6 {[%clk 0:02:15]} 16. Ra3 {[%clk 0:02:07]}  Rac8 {[%clk 0:02:08]} 17. Be5 {[%clk 0:01:27]}  Nc4 {[%clk 0:01:39]} 18. Bxc4 {[%clk 0:01:25]}  Rxc4 {[%clk 0:01:40]} 19. Ra2 {[%clk 0:01:02]}  a5 {[%clk 0:01:24]} 20. Nf4 {[%clk 0:00:55]}  Qb3 {[%clk 0:01:16]} 21. Rea1 {[%clk 0:00:24]}  Rec8 {[%clk 0:01:02]} 22. Qd1 {[%clk 0:00:22]}  Qxd1+ {[%clk 0:01:01]} 23. Rxd1 {[%clk 0:00:21]}  Ne8 {[%clk 0:01:01]} 24. Ra3 {[%clk 0:00:19]}  Bh6 {[%clk 0:00:58]} 25. Nd3 {[%clk 0:00:17]}  b6 {[%clk 0:00:54]} 26. Rb3 {[%clk 0:00:17]}  f6 {[%clk 0:00:49]} 27. Bf4 {[%clk 0:00:17]}  Bxf4 {[%clk 0:00:48]} 28. Nxf4 {[%clk 0:00:17]}  Rb4 {[%clk 0:00:43]} 29. Rxb4 {[%clk 0:00:13]}  axb4 {[%clk 0:00:44]} 30. Na2 {[%clk 0:00:11]}  Bxa4 {[%clk 0:00:41]} 31. Rc1 {[%clk 0:00:07]}  Rxc1+ {[%clk 0:00:34]} 32. Nxc1 {[%clk 0:00:07]}  Nd6 {[%clk 0:00:32]} 33. Ncd3 {[%clk 0:00:06]}  b3 {[%clk 0:00:30]} 34. Ne2 {[%clk 0:00:06]}  Bb5 {[%clk 0:00:30]} 35. Nec1 {[%clk 0:00:04]}  Bc4 {[%clk 0:00:30]} 36. Nb4 {[%clk 0:00:02]}  Kf7 {[%clk 0:00:29]} 37. f3 {[%clk 0:00:02]}  Nf5 {[%clk 0:00:28]} 0-1


[Site "https://www.chess.com"]

[Event "Titled Tuesday Blitz April 05 Late 2022"]
[White "Ambartsumova, Karina"]
[Black "Brizzi, Milagros Tatiana"]
[WhiteFideId "4166299"]
[BlackFideId "128350"]
[WhiteElo "2262"]
[BlackElo "1844"]
[Result "1-0"]
[Round "01"]
[TimeControl "180+1"]
[Date "2022.04.06"]
[WhiteClock "0:00:36"]
[BlackClock "0:00:04"]

1. e4 {[%clk 0:02:58]}  c6 {[%clk 0:02:59]} 2. Ne2 {[%clk 0:02:55]}  d5 {[%clk 0:02:54]} 3. e5 {[%clk 0:02:55]}  Bf5 {[%clk 0:02:49]} 4. Ng3 {[%clk 0:02:55]}  Bg6 {[%clk 0:02:49]} 5. h4 {[%clk 0:02:55]}  h6 {[%clk 0:02:47]} 6. h5 {[%clk 0:02:55]}  Bh7 {[%clk 0:02:43]} 7. e6 {[%clk 0:02:55]}  fxe6 {[%clk 0:02:40]} 8. d4 {[%clk 0:02:55]}  Nd7 {[%clk 0:02:34]} 9. Bd3 {[%clk 0:02:50]}  Ngf6 {[%clk 0:02:29]} 10. f4 {[%clk 0:02:39]}  Qb6 {[%clk 0:02:23]} 11. Bxh7 {[%clk 0:02:38]}  Rxh7 {[%clk 0:02:21]} 12. Qd3 {[%clk 0:02:38]}  O-O-O {[%clk 0:02:20]} 13. Nd2 {[%clk 0:02:37]}  Rh8 {[%clk 0:02:13]} 14. Nf3 {[%clk 0:02:34]}  Kb8 {[%clk 0:02:13]} 15. a4 {[%clk 0:02:21]}  c5 {[%clk 0:01:26]} 16. a5 {[%clk 0:02:17]}  Qc7 {[%clk 0:01:21]} 17. c3 {[%clk 0:02:12]}  Rg8 {[%clk 0:01:17]} 18. Be3 {[%clk 0:02:05]}  Ng4 {[%clk 0:01:17]} 19. Bd2 {[%clk 0:02:01]}  e5 {[%clk 0:01:16]} 20. fxe5 {[%clk 0:01:55]}  e6 {[%clk 0:01:16]} 21. Qg6 {[%clk 0:01:53]}  Ngxe5 {[%clk 0:01:05]} 22. dxe5 {[%clk 0:01:43]}  Nxe5 {[%clk 0:01:05]} 23. Nxe5 {[%clk 0:01:41]}  Qxe5+ {[%clk 0:01:04]} 24. Ne2 {[%clk 0:01:42]}  Bd6 {[%clk 0:00:45]} 25. Bf4 {[%clk 0:01:40]}  Qf5 {[%clk 0:00:38]} 26. Qxf5 {[%clk 0:01:39]}  exf5 {[%clk 0:00:37]} 27. O-O {[%clk 0:01:40]}  Kc7 {[%clk 0:00:35]} 28. Bxd6+ {[%clk 0:01:39]}  Kxd6 {[%clk 0:00:36]} 29. Rxf5 {[%clk 0:01:39]}  Rgf8 {[%clk 0:00:36]} 30. Raf1 {[%clk 0:01:38]}  Rxf5 {[%clk 0:00:35]} 31. Rxf5 {[%clk 0:01:39]}  Ke6 {[%clk 0:00:35]} 32. Rf3 {[%clk 0:01:38]}  d4 {[%clk 0:00:35]} 33. cxd4 {[%clk 0:01:32]}  cxd4 {[%clk 0:00:35]} 34. Nf4+ {[%clk 0:01:33]}  Ke5 {[%clk 0:00:34]} 35. Nd3+ {[%clk 0:01:32]}  Ke4 {[%clk 0:00:34]} 36. Kf2 {[%clk 0:01:32]}  Rc8 {[%clk 0:00:33]} 37. Kg3 {[%clk 0:01:27]}  Rc2 {[%clk 0:00:32]} 38. b4 {[%clk 0:01:22]}  Rd2 {[%clk 0:00:23]} 39. Nc5+ {[%clk 0:01:17]}  Kd5 {[%clk 0:00:20]} 40. Nxb7 {[%clk 0:01:02]}  Rb2 {[%clk 0:00:17]} 41. Rf5+ {[%clk 0:00:50]}  Kc4 {[%clk 0:00:16]} 42. Nd6+ {[%clk 0:00:50]}  Kc3 {[%clk 0:00:14]} 43. Rc5+ {[%clk 0:00:48]}  Kd3 {[%clk 0:00:12]} 44. b5 {[%clk 0:00:46]}  Ke2 {[%clk 0:00:07]} 45. Nc4 {[%clk 0:00:43]}  Rb3+ {[%clk 0:00:07]} 46. Kf4 {[%clk 0:00:42]}  d3 {[%clk 0:00:07]} 47. Re5+ {[%clk 0:00:37]}  Kf2 {[%clk 0:00:06]} 48. Rd5 {[%clk 0:00:36]}  Ke2 {[%clk 0:00:04]} 49. b6 {[%clk 0:00:36]}  axb6 {[%clk 0:00:04]} 50. axb6 {[%clk 0:00:37]}  Rb4 {[%clk 0:00:04]} 51. Rd4 {[%clk 0:00:36]} 1-0


[Site "https://www.chess.com"]

[Event "Titled Tuesday Blitz April 05 Late 2022"]
[White "Baker, Chris W"]
[Black "Jaferian, Koosha"]
[WhiteFideId "401676"]
[BlackFideId "12507440"]
[WhiteElo "2138"]
[BlackElo "2030"]
[Result "1-0"]
[Round "01"]
[TimeControl "180+1"]
[Date "2022.04.06"]
[WhiteClock "0:00:59"]
[BlackClock "0:01:02"]

1. d4 {[%clk 0:02:59]}  Nf6 {[%clk 0:02:59]} 2. Nf3 {[%clk 0:02:59]}  e6 {[%clk 0:03:00]} 3. c4 {[%clk 0:02:57]}  b6 {[%clk 0:03:00]} 4. g3 {[%clk 0:02:56]}  Ba6 {[%clk 0:03:00]} 5. b3 {[%clk 0:02:54]}  Bb4+ {[%clk 0:03:00]} 6. Bd2 {[%clk 0:02:55]}  Be7 {[%clk 0:03:00]} 7. Bg2 {[%clk 0:02:55]}  c6 {[%clk 0:03:00]} 8. O-O {[%clk 0:02:54]}  O-O {[%clk 0:03:00]} 9. Bc3 {[%clk 0:02:48]}  d5 {[%clk 0:03:01]} 10. Nbd2 {[%clk 0:02:48]}  Nbd7 {[%clk 0:03:01]} 11. Qc2 {[%clk 0:02:43]}  Rc8 {[%clk 0:02:54]} 12. Rad1 {[%clk 0:02:42]}  Bb7 {[%clk 0:02:48]} 13. Qb1 {[%clk 0:02:27]}  Qc7 {[%clk 0:02:40]} 14. Bb2 {[%clk 0:02:23]}  c5 {[%clk 0:02:37]} 15. dxc5 {[%clk 0:02:21]}  Nxc5 {[%clk 0:02:37]} 16. cxd5 {[%clk 0:02:18]}  Bxd5 {[%clk 0:02:38]} 17. Rc1 {[%clk 0:02:04]}  Qb7 {[%clk 0:02:34]} 18. Nc4 {[%clk 0:01:55]}  Nce4 {[%clk 0:02:32]} 19. Nce5 {[%clk 0:01:38]}  Rfd8 {[%clk 0:02:31]} 20. Qa1 {[%clk 0:01:36]}  Rxc1 {[%clk 0:02:26]} 21. Rxc1 {[%clk 0:01:34]}  Bc5 {[%clk 0:02:27]} 22. Nd3 {[%clk 0:01:33]}  Be7 {[%clk 0:02:13]} 23. Nf4 {[%clk 0:01:32]}  Bc6 {[%clk 0:02:10]} 24. Ne5 {[%clk 0:01:27]}  Bd5 {[%clk 0:01:55]} 25. Nxd5 {[%clk 0:01:24]}  exd5 {[%clk 0:01:56]} 26. Nd3 {[%clk 0:01:21]}  Qd7 {[%clk 0:01:52]} 27. Bd4 {[%clk 0:01:19]}  Qf5 {[%clk 0:01:50]} 28. Bf3 {[%clk 0:01:16]}  Ng5 {[%clk 0:01:49]} 29. Bg2 {[%clk 0:01:13]}  Nge4 {[%clk 0:01:42]} 30. Rc7 {[%clk 0:01:12]}  Bf8 {[%clk 0:01:32]} 31. Qc1 {[%clk 0:01:10]}  Rd7 {[%clk 0:01:29]} 32. Rc8 {[%clk 0:01:08]}  h5 {[%clk 0:01:20]} 33. Qf4 {[%clk 0:01:05]}  Qe6 {[%clk 0:01:14]} 34. Qb8 {[%clk 0:01:03]}  Kh7 {[%clk 0:01:07]} 35. Rxf8 {[%clk 0:01:01]}  Nd6 {[%clk 0:01:03]} 36. Nf4 {[%clk 0:00:59]}  Qf5 {[%clk 0:01:02]} 37. Rh8# {[%clk 0:00:59]} 1-0


[Site "https://www.chess.com"]

[Event "Titled Tuesday Blitz April 05 Late 2022"]
[White "Bazeev, German"]
[Black "Ozdemir, Serhan Berat"]
[WhiteFideId "24119350"]
[BlackFideId "6374611"]
[WhiteElo "2493"]
[BlackElo "1920"]
[Result "1-0"]
[Round "01"]
[TimeControl "180+1"]
[Date "2022.04.06"]
[WhiteClock "0:01:44"]
[BlackClock "0:00:28"]

1. d4 {[%clk 0:02:54]}  Nf6 {[%clk 0:02:59]} 2. Bg5 {[%clk 0:02:53]}  g6 {[%clk 0:02:58]} 3. Bxf6 {[%clk 0:02:53]}  exf6 {[%clk 0:02:59]} 4. h4 {[%clk 0:02:53]}  h5 {[%clk 0:02:58]} 5. e3 {[%clk 0:02:53]}  d5 {[%clk 0:02:58]} 6. c4 {[%clk 0:02:49]}  c6 {[%clk 0:02:41]} 7. cxd5 {[%clk 0:02:48]}  Qxd5 {[%clk 0:02:42]} 8. Nc3 {[%clk 0:02:46]}  Bb4 {[%clk 0:02:42]} 9. Qb3 {[%clk 0:02:45]}  Qxb3 {[%clk 0:02:40]} 10. axb3 {[%clk 0:02:46]}  a5 {[%clk 0:02:28]} 11. Nf3 {[%clk 0:02:44]}  Be6 {[%clk 0:02:25]} 12. Bc4 {[%clk 0:02:42]}  Bxc4 {[%clk 0:02:24]} 13. bxc4 {[%clk 0:02:43]}  Nd7 {[%clk 0:02:18]} 14. Ke2 {[%clk 0:02:40]}  Ke7 {[%clk 0:02:10]} 15. Rhc1 {[%clk 0:02:36]}  Rhb8 {[%clk 0:02:06]} 16. Nd2 {[%clk 0:02:33]}  f5 {[%clk 0:01:58]} 17. g3 {[%clk 0:02:32]}  Nf6 {[%clk 0:01:58]} 18. c5 {[%clk 0:02:31]}  Bxc3 {[%clk 0:01:49]} 19. Rxc3 {[%clk 0:02:29]}  Nd5 {[%clk 0:01:49]} 20. Rb3 {[%clk 0:02:28]}  b6 {[%clk 0:01:48]} 21. cxb6 {[%clk 0:02:27]}  Rxb6 {[%clk 0:01:49]} 22. Rxb6 {[%clk 0:02:23]}  Nxb6 {[%clk 0:01:50]} 23. Nb3 {[%clk 0:02:21]}  Nc4 {[%clk 0:01:42]} 24. Kd3 {[%clk 0:02:21]}  Nd6 {[%clk 0:01:13]} 25. Nc5 {[%clk 0:02:21]}  Rb8 {[%clk 0:01:06]} 26. b3 {[%clk 0:02:18]}  Ne4 {[%clk 0:01:06]} 27. Nxe4 {[%clk 0:02:17]}  fxe4+ {[%clk 0:01:07]} 28. Kc3 {[%clk 0:02:14]}  Rb5 {[%clk 0:01:06]} 29. Ra4 {[%clk 0:02:13]}  Kd6 {[%clk 0:01:06]} 30. Ra1 {[%clk 0:02:10]}  Rf5 {[%clk 0:01:06]} 31. Ra2 {[%clk 0:02:09]}  Rb5 {[%clk 0:01:06]} 32. Kc4 {[%clk 0:02:09]}  Rb4+ {[%clk 0:01:06]} 33. Kc3 {[%clk 0:02:09]}  Rb5 {[%clk 0:01:07]} 34. f4 {[%clk 0:02:07]}  exf3 {[%clk 0:01:07]} 35. Rf2 {[%clk 0:02:07]}  c5 {[%clk 0:00:57]} 36. Rxf3 {[%clk 0:02:05]}  cxd4+ {[%clk 0:00:57]} 37. exd4 {[%clk 0:02:06]}  Ke6 {[%clk 0:00:49]} 38. Re3+ {[%clk 0:02:02]}  Kd6 {[%clk 0:00:48]} 39. Re8 {[%clk 0:01:59]}  Rf5 {[%clk 0:00:48]} 40. Kc4 {[%clk 0:01:51]}  Rf3 {[%clk 0:00:46]} 41. Ra8 {[%clk 0:01:52]}  Rxg3 {[%clk 0:00:40]} 42. Ra6+ {[%clk 0:01:53]}  Ke7 {[%clk 0:00:37]} 43. Rxa5 {[%clk 0:01:54]}  f5 {[%clk 0:00:38]} 44. b4 {[%clk 0:01:52]}  f4 {[%clk 0:00:38]} 45. b5 {[%clk 0:01:53]}  f3 {[%clk 0:00:38]} 46. Kd3 {[%clk 0:01:53]}  f2+ {[%clk 0:00:33]} 47. Ke2 {[%clk 0:01:54]}  Rg4 {[%clk 0:00:34]} 48. Ra4 {[%clk 0:01:43]}  Rf4 {[%clk 0:00:33]} 49. Kf1 {[%clk 0:01:43]}  Kd6 {[%clk 0:00:33]} 50. b6 {[%clk 0:01:43]}  Kc6 {[%clk 0:00:33]} 51. d5+ {[%clk 0:01:43]}  Kxb6 {[%clk 0:00:26]} 52. Rxf4 {[%clk 0:01:44]}  Kc5 {[%clk 0:00:26]} 53. Rxf2 {[%clk 0:01:43]}  Kd6 {[%clk 0:00:27]} 54. Re2 {[%clk 0:01:43]}  Kxd5 {[%clk 0:00:28]} 55. Kg2 {[%clk 0:01:44]}  g5 {[%clk 0:00:28]} 56. hxg5 {[%clk 0:01:44]} 1-0


[Site "https://www.chess.com"]

[Event "Titled Tuesday Blitz April 05 Late 2022"]
[White "Bordi, Kevin"]
[Black "Sebag, Marie"]
[WhiteFideId "621862"]
[BlackFideId "617822"]
[WhiteElo "2777"]
[BlackElo "2440"]
[Result "0-1"]
[Round "01"]
[TimeControl "180+1"]
[Date "2022.04.06"]
[WhiteClock "0:01:09"]
[BlackClock "0:00:22"]

1. e4 {[%clk 0:03:00]}  c6 {[%clk 0:02:57]} 2. c4 {[%clk 0:03:00]}  d5 {[%clk 0:02:46]} 3. cxd5 {[%clk 0:03:01]}  cxd5 {[%clk 0:02:46]} 4. exd5 {[%clk 0:03:01]}  g6 {[%clk 0:02:45]} 5. Nc3 {[%clk 0:03:02]}  Bg7 {[%clk 0:02:44]} 6. Bc4 {[%clk 0:03:03]}  Nf6 {[%clk 0:02:44]} 7. Nf3 {[%clk 0:03:03]}  Nbd7 {[%clk 0:02:44]} 8. O-O {[%clk 0:03:03]}  O-O {[%clk 0:02:44]} 9. d3 {[%clk 0:03:03]}  Nb6 {[%clk 0:02:44]} 10. Qb3 {[%clk 0:03:03]}  Qc7 {[%clk 0:02:36]} 11. Re1 {[%clk 0:03:02]}  a6 {[%clk 0:01:54]} 12. Bg5 {[%clk 0:02:49]}  h6 {[%clk 0:01:44]} 13. Bh4 {[%clk 0:02:49]}  Nbd7 {[%clk 0:01:32]} 14. Rxe7 {[%clk 0:02:45]}  b5 {[%clk 0:01:31]} 15. Bxb5 {[%clk 0:02:19]}  axb5 {[%clk 0:01:30]} 16. Nxb5 {[%clk 0:02:20]}  Qc5 {[%clk 0:01:22]} 17. d6 {[%clk 0:02:04]}  Rb8 {[%clk 0:01:18]} 18. a4 {[%clk 0:01:59]}  Ba6 {[%clk 0:01:16]} 19. d4 {[%clk 0:01:52]}  Qxd6 {[%clk 0:01:08]} 20. Rae1 {[%clk 0:01:52]}  Bxb5 {[%clk 0:01:03]} 21. Bg3 {[%clk 0:01:46]}  Qd5 {[%clk 0:00:47]} 22. Qxd5 {[%clk 0:01:34]}  Nxd5 {[%clk 0:00:47]} 23. axb5 {[%clk 0:01:35]}  Nxe7 {[%clk 0:00:43]} 24. Rxe7 {[%clk 0:01:36]}  Rbc8 {[%clk 0:00:31]} 25. h4 {[%clk 0:01:31]}  Nb6 {[%clk 0:00:30]} 26. Rb7 {[%clk 0:01:19]}  Nd5 {[%clk 0:00:28]} 27. Rd7 {[%clk 0:01:17]}  Nf6 {[%clk 0:00:26]} 28. Ra7 {[%clk 0:01:16]}  Rc1+ {[%clk 0:00:25]} 29. Kh2 {[%clk 0:01:16]}  Ng4+ {[%clk 0:00:25]} 30. Kh3 {[%clk 0:01:16]}  h5 {[%clk 0:00:25]} 31. Bd6 {[%clk 0:01:12]}  Nxf2+ {[%clk 0:00:23]} 32. Kh2 {[%clk 0:01:08]}  Rh1+ {[%clk 0:00:22]} 33. Kg3 {[%clk 0:01:08]}  Ne4+ {[%clk 0:00:22]} 34. Kf4 {[%clk 0:01:09]}  Nxd6 {[%clk 0:00:22]} 0-1


[Site "https://www.chess.com"]

[Event "Titled Tuesday Blitz April 05 Late 2022"]
[White "Burke, Paul"]
[Black "Koellner, Ruben Gideon"]
[WhiteFideId "2605767"]
[BlackFideId "12993093"]
[WhiteElo "1868"]
[BlackElo "2551"]
[Result "0-1"]
[Round "01"]
[TimeControl "180+1"]
[Date "2022.04.06"]
[WhiteClock "0:01:18"]
[BlackClock "0:01:44"]

1. e4 {[%clk 0:03:00]}  d6 {[%clk 0:03:00]} 2. Nc3 {[%clk 0:02:59]}  Nf6 {[%clk 0:03:00]} 3. g3 {[%clk 0:02:59]}  e5 {[%clk 0:03:01]} 4. Bg2 {[%clk 0:02:59]}  Be7 {[%clk 0:03:01]} 5. Nge2 {[%clk 0:02:58]}  O-O {[%clk 0:03:02]} 6. O-O {[%clk 0:02:58]}  c6 {[%clk 0:03:01]} 7. h3 {[%clk 0:02:58]}  Re8 {[%clk 0:03:02]} 8. d3 {[%clk 0:02:58]}  Bf8 {[%clk 0:03:02]} 9. f4 {[%clk 0:02:58]}  d5 {[%clk 0:03:00]} 10. f5 {[%clk 0:02:54]}  dxe4 {[%clk 0:02:58]} 11. Nxe4 {[%clk 0:02:50]}  Nxe4 {[%clk 0:02:58]} 12. dxe4 {[%clk 0:02:45]}  Qxd1 {[%clk 0:02:55]} 13. Rxd1 {[%clk 0:02:44]}  Na6 {[%clk 0:02:52]} 14. c3 {[%clk 0:02:37]}  Nc7 {[%clk 0:02:46]} 15. Be3 {[%clk 0:02:34]}  f6 {[%clk 0:02:39]} 16. g4 {[%clk 0:02:32]}  h6 {[%clk 0:02:36]} 17. Rd2 {[%clk 0:02:31]}  Na6 {[%clk 0:02:27]} 18. Rad1 {[%clk 0:02:30]}  Bc5 {[%clk 0:02:26]} 19. Bxc5 {[%clk 0:02:23]}  Nxc5 {[%clk 0:02:27]} 20. Rd8 {[%clk 0:02:23]}  Kf7 {[%clk 0:02:27]} 21. Rxe8 {[%clk 0:02:22]}  Kxe8 {[%clk 0:02:28]} 22. b4 {[%clk 0:02:18]}  Na4 {[%clk 0:02:27]} 23. Kf2 {[%clk 0:01:59]}  b6 {[%clk 0:02:26]} 24. Ke3 {[%clk 0:01:57]}  Ba6 {[%clk 0:02:25]} 25. Rd6 {[%clk 0:01:47]}  Rc8 {[%clk 0:02:19]} 26. Re6+ {[%clk 0:01:31]}  Kd7 {[%clk 0:02:07]} 27. a3 {[%clk 0:01:18]}  Bc4 {[%clk 0:01:44]} 0-1


[Site "https://www.chess.com"]

[Event "Titled Tuesday Blitz April 05 Late 2022"]
[White "Calderon, Zachary"]
[Black "Do Valle Cardoso, Lucas"]
[WhiteFideId "2076969"]
[BlackFideId "2163144"]
[WhiteElo "2301"]
[BlackElo "2331"]
[Result "0-1"]
[Round "01"]
[TimeControl "180+1"]
[Date "2022.04.06"]
[WhiteClock "0:01:26"]
[BlackClock "0:01:20"]

1. Nf3 {[%clk 0:03:00]}  d5 {[%clk 0:02:58]} 2. c4 {[%clk 0:03:01]}  d4 {[%clk 0:02:58]} 3. g3 {[%clk 0:03:00]}  Nc6 {[%clk 0:02:56]} 4. d3 {[%clk 0:03:00]}  e5 {[%clk 0:02:55]} 5. Bg2 {[%clk 0:03:00]}  h6 {[%clk 0:02:46]} 6. O-O {[%clk 0:03:01]}  Nf6 {[%clk 0:02:45]} 7. Na3 {[%clk 0:03:00]}  Be7 {[%clk 0:02:42]} 8. Nc2 {[%clk 0:03:00]}  a5 {[%clk 0:02:42]} 9. Bd2 {[%clk 0:02:59]}  O-O {[%clk 0:02:38]} 10. Rb1 {[%clk 0:02:58]}  Nd7 {[%clk 0:02:37]} 11. b4 {[%clk 0:02:56]}  axb4 {[%clk 0:02:37]} 12. Nxb4 {[%clk 0:02:56]}  Nxb4 {[%clk 0:02:35]} 13. Bxb4 {[%clk 0:02:57]}  Bxb4 {[%clk 0:02:32]} 14. Rxb4 {[%clk 0:02:58]}  Rxa2 {[%clk 0:02:33]} 15. Nd2 {[%clk 0:02:59]}  b6 {[%clk 0:02:21]} 16. f4 {[%clk 0:02:57]}  exf4 {[%clk 0:02:16]} 17. Rxf4 {[%clk 0:02:58]}  Re8 {[%clk 0:02:12]} 18. Rxd4 {[%clk 0:02:57]}  c5 {[%clk 0:02:11]} 19. Rxd7 {[%clk 0:02:58]}  Bxd7 {[%clk 0:02:09]} 20. Rb1 {[%clk 0:02:51]}  Bg4 {[%clk 0:02:06]} 21. Be4 {[%clk 0:02:42]}  Rxd2 {[%clk 0:01:55]} 22. Qxd2 {[%clk 0:02:40]}  Rxe4 {[%clk 0:01:55]} 23. Rxb6 {[%clk 0:02:22]}  Rxe2 {[%clk 0:01:52]} 24. Qf4 {[%clk 0:02:19]}  Qxd3 {[%clk 0:01:46]} 25. Rb1 {[%clk 0:01:55]}  Qxb1+ {[%clk 0:01:45]} 26. Qc1 {[%clk 0:01:41]}  Rb2 {[%clk 0:01:38]} 27. h3 {[%clk 0:01:40]}  Bd1 {[%clk 0:01:31]} 28. Qe3 {[%clk 0:01:35]}  Be2+ {[%clk 0:01:29]} 29. Kf2 {[%clk 0:01:32]}  Bxc4+ {[%clk 0:01:27]} 30. Kf3 {[%clk 0:01:32]}  Rb3 {[%clk 0:01:26]} 31. Kf4 {[%clk 0:01:32]}  Rxe3 {[%clk 0:01:17]} 32. g4 {[%clk 0:01:31]}  Qd3 {[%clk 0:01:18]} 33. g5 {[%clk 0:01:29]}  Qd4+ {[%clk 0:01:19]} 34. Kf5 {[%clk 0:01:26]}  Re5# {[%clk 0:01:20]} 0-1


[Site "https://www.chess.com"]

[Event "Titled Tuesday Blitz April 05 Late 2022"]
[White "Chernobay, Artem"]
[Black "Hernandez Bermudez, Ulises Eduardo"]
[WhiteFideId "4167406"]
[BlackFideId "3902510"]
[WhiteElo "2473"]
[BlackElo "2056"]
[Result "1-0"]
[Round "01"]
[TimeControl "180+1"]
[Date "2022.04.06"]
[WhiteClock "0:00:21"]
[BlackClock "0:00:11"]

1. e4 {[%clk 0:03:00]}  c5 {[%clk 0:02:57]} 2. Nf3 {[%clk 0:03:00]}  d6 {[%clk 0:02:56]} 3. d4 {[%clk 0:03:00]}  cxd4 {[%clk 0:02:56]} 4. Nxd4 {[%clk 0:03:01]}  Nf6 {[%clk 0:02:56]} 5. Nc3 {[%clk 0:03:01]}  a6 {[%clk 0:02:56]} 6. f3 {[%clk 0:03:00]}  e5 {[%clk 0:02:55]} 7. Nb3 {[%clk 0:03:00]}  Be7 {[%clk 0:02:55]} 8. Be3 {[%clk 0:03:00]}  O-O {[%clk 0:02:54]} 9. Qd2 {[%clk 0:03:00]}  Be6 {[%clk 0:02:52]} 10. O-O-O {[%clk 0:02:55]}  Nbd7 {[%clk 0:02:51]} 11. g4 {[%clk 0:02:55]}  Qc7 {[%clk 0:02:50]} 12. g5 {[%clk 0:02:53]}  Nh5 {[%clk 0:02:50]} 13. Rg1 {[%clk 0:02:46]}  b5 {[%clk 0:02:48]} 14. Nd5 {[%clk 0:01:58]}  Bxd5 {[%clk 0:02:45]} 15. exd5 {[%clk 0:01:54]}  Nb6 {[%clk 0:02:42]} 16. Na5 {[%clk 0:01:40]}  Nxd5 {[%clk 0:02:26]} 17. Qxd5 {[%clk 0:01:39]}  Qxa5 {[%clk 0:02:25]} 18. Kb1 {[%clk 0:01:38]}  Rac8 {[%clk 0:02:10]} 19. Bd3 {[%clk 0:01:36]}  g6 {[%clk 0:01:50]} 20. c4 {[%clk 0:01:22]}  Rb8 {[%clk 0:01:31]} 21. Rc1 {[%clk 0:01:15]}  Qb4 {[%clk 0:01:21]} 22. cxb5 {[%clk 0:01:08]}  axb5 {[%clk 0:01:14]} 23. Rc7 {[%clk 0:01:08]}  Bd8 {[%clk 0:01:08]} 24. Rd7 {[%clk 0:01:07]}  Bb6 {[%clk 0:01:03]} 25. Bxb6 {[%clk 0:00:56]}  Rxb6 {[%clk 0:01:04]} 26. Be4 {[%clk 0:00:42]}  Ng7 {[%clk 0:00:41]} 27. Rc1 {[%clk 0:00:39]}  Ne6 {[%clk 0:00:39]} 28. a3 {[%clk 0:00:33]}  Qd4 {[%clk 0:00:36]} 29. h4 {[%clk 0:00:32]}  Qxd5 {[%clk 0:00:13]} 30. Bxd5 {[%clk 0:00:33]}  Nf4 {[%clk 0:00:14]} 31. Bb3 {[%clk 0:00:29]}  d5 {[%clk 0:00:13]} 32. Rcc7 {[%clk 0:00:25]}  d4 {[%clk 0:00:12]} 33. Bxf7+ {[%clk 0:00:23]}  Kh8 {[%clk 0:00:11]} 34. Bb3 {[%clk 0:00:21]} 1-0


[Site "https://www.chess.com"]

[Event "Titled Tuesday Blitz April 05 Late 2022"]
[White "Constantinou, Peter"]
[Black "Hardaway, Brewington"]
[WhiteFideId "413038"]
[BlackFideId "30941849"]
[WhiteElo "2230"]
[BlackElo "1768"]
[Result "0-1"]
[Round "01"]
[TimeControl "180+1"]
[Date "2022.04.06"]
[WhiteClock "0:00:04"]
[BlackClock "0:00:09"]

1. b3 {[%clk 0:03:00]}  Nf6 {[%clk 0:02:59]} 2. Bb2 {[%clk 0:03:01]}  e6 {[%clk 0:02:59]} 3. g3 {[%clk 0:02:59]}  d5 {[%clk 0:03:00]} 4. Bg2 {[%clk 0:03:00]}  Bd6 {[%clk 0:03:01]} 5. d3 {[%clk 0:02:59]}  Nc6 {[%clk 0:03:01]} 6. Nd2 {[%clk 0:02:59]}  Ne5 {[%clk 0:03:00]} 7. Ngf3 {[%clk 0:02:56]}  Neg4 {[%clk 0:03:00]} 8. h3 {[%clk 0:02:54]}  Nh6 {[%clk 0:02:54]} 9. g4 {[%clk 0:02:53]}  Nhg8 {[%clk 0:02:46]} 10. e4 {[%clk 0:02:48]}  dxe4 {[%clk 0:02:40]} 11. dxe4 {[%clk 0:02:49]}  Be7 {[%clk 0:02:31]} 12. Qe2 {[%clk 0:02:47]}  Kf8 {[%clk 0:02:23]} 13. O-O-O {[%clk 0:02:46]}  Qe8 {[%clk 0:02:22]} 14. Nc4 {[%clk 0:02:38]}  a5 {[%clk 0:02:18]} 15. Nce5 {[%clk 0:02:36]}  a4 {[%clk 0:02:16]} 16. Ng5 {[%clk 0:02:35]}  Nh6 {[%clk 0:02:13]} 17. f4 {[%clk 0:02:33]}  Nd7 {[%clk 0:02:09]} 18. Rhf1 {[%clk 0:02:20]}  Nxe5 {[%clk 0:02:06]} 19. Bxe5 {[%clk 0:02:19]}  f6 {[%clk 0:02:07]} 20. Bb2 {[%clk 0:02:16]}  fxg5 {[%clk 0:01:57]} 21. fxg5+ {[%clk 0:02:03]}  Nf7 {[%clk 0:01:56]} 22. h4 {[%clk 0:02:04]}  Kg8 {[%clk 0:01:55]} 23. Kb1 {[%clk 0:01:59]}  e5 {[%clk 0:01:42]} 24. Qc4 {[%clk 0:01:16]}  b5 {[%clk 0:01:40]} 25. Qxc7 {[%clk 0:01:12]}  Bxg4 {[%clk 0:01:37]} 26. Bf3 {[%clk 0:01:10]}  Be6 {[%clk 0:01:35]} 27. Bh5 {[%clk 0:01:04]}  axb3 {[%clk 0:01:30]} 28. axb3 {[%clk 0:01:03]}  Rc8 {[%clk 0:01:05]} 29. Bxf7+ {[%clk 0:01:01]}  Bxf7 {[%clk 0:01:06]} 30. Qxe5 {[%clk 0:01:01]}  Bf8 {[%clk 0:01:06]} 31. Qf4 {[%clk 0:00:55]}  Bg6 {[%clk 0:00:59]} 32. Rde1 {[%clk 0:00:48]}  Qc6 {[%clk 0:00:53]} 33. Rf2 {[%clk 0:00:41]}  h5 {[%clk 0:00:45]} 34. Qe5 {[%clk 0:00:27]}  Qc7 {[%clk 0:00:29]} 35. Qe6+ {[%clk 0:00:26]}  Kh7 {[%clk 0:00:28]} 36. Be5 {[%clk 0:00:20]}  Qc6 {[%clk 0:00:21]} 37. Qd5 {[%clk 0:00:20]}  Bb4 {[%clk 0:00:20]} 38. Rd1 {[%clk 0:00:19]}  Bxe4 {[%clk 0:00:16]} 39. Qxc6 {[%clk 0:00:18]}  Rxc6 {[%clk 0:00:17]} 40. Rd7 {[%clk 0:00:16]}  Rg8 {[%clk 0:00:14]} 41. Rff7 {[%clk 0:00:15]}  Bxc2+ {[%clk 0:00:13]} 42. Kb2 {[%clk 0:00:16]}  Kg6 {[%clk 0:00:12]} 43. Rxg7+ {[%clk 0:00:15]}  Rxg7 {[%clk 0:00:11]} 44. Rxg7+ {[%clk 0:00:16]}  Kf5 {[%clk 0:00:12]} 45. Bd4 {[%clk 0:00:16]}  Be4 {[%clk 0:00:13]} 46. Rf7+ {[%clk 0:00:12]}  Kg4 {[%clk 0:00:13]} 47. Rf2 {[%clk 0:00:06]}  Bf3 {[%clk 0:00:08]} 48. Bf6 {[%clk 0:00:05]}  Bc5 {[%clk 0:00:08]} 49. Rc2 {[%clk 0:00:05]}  Ba3+ {[%clk 0:00:08]} 50. Kb1 {[%clk 0:00:04]}  Be4 {[%clk 0:00:09]} 0-1


[Site "https://www.chess.com"]